fUSD/lending_fUSD_20251023
["ID","MTS","AMOUNT","RATE_DAILY","PERIOD"]
[392160164,1761222226159,-500.0,0.00024931,2]
[392160165,1761222226181,-212.98,0.00024931,2]
[392160166,1761222226205,-500.0,0.00024931,2]
[392160167,1761222226228,-500.0,0.00024931,2]
[392160169,1761222242141,300.0,0.00024931,2]
[392160174,1761222253827,-500.0,0.00024932,2]
[392160175,1761222253850,-19500.0,0.00024932,2]
[392160176,1761222262595,-20000.0,0.00024932,2]
[392160177,1761222268272,-20000.0,0.00024932,2]
[392160178,1761222272770,223.16576177,0.00024931,2]
[392160179,1761222273625,159.59518478,0.00024931,2]
[392160180,1761222275115,-20000.0,0.00024932,2]
[392160181,1761222281225,-20000.0,0.00024932,2]
[392160183,1761222298278,-30000.0,0.00024932,2]
[392160186,1761222304431,-30000.0,0.00024932,2]
[392160196,1761222309867,-30000.0,0.00024932,2]
[392160197,1761222315530,-30000.0,0.00024932,2]
[392160199,1761222321550,-10000.0,0.00024932,2]
[392160201,1761222333113,-34887.14907423,0.00024932,2]
[392160202,1761222334101,-6043.97377798,0.00024932,2]
[392160205,1761222417440,1759.33,0.000162,5]
[392160206,1761222417464,7134.92221342,0.000162,5]
[392160207,1761222440118,-300.0,0.00024931,2]
[392160208,1761222440138,-568.10674638,0.00024932,2]
[392160209,1761222448950,12074.40778658,0.0002,2]
[392160210,1761222448974,4704.22945326,0.0002,2]
[392160212,1761222470920,3517.38818152,0.0002,4]
[392160215,1761222476473,91778.38236522,0.00015,2]
[392160216,1761222476498,83938.55081487,0.00015,2]
[392160217,1761222479610,-10000.0,0.00024932,2]
[392160218,1761222480430,-10000.0,0.00024932,2]
[392160219,1761222481105,-10000.0,0.00024932,2]
[392160220,1761222481931,-10000.0,0.00024932,2]
[392160221,1761222484053,-10000.0,0.00024932,2]
[392160222,1761222484235,-10000.0,0.00024932,2]
[392160223,1761222485071,-10000.0,0.00024932,2]
[392160224,1761222486093,-10000.0,0.00024932,2]
[392160225,1761222487038,-10000.0,0.00024932,2]
[392160226,1761222487848,-10000.0,0.00024932,2]
[392160227,1761222488738,-10000.0,0.00024932,2]
[392160228,1761222489555,-10000.0,0.00024932,2]
[392160229,1761222490415,-10000.0,0.00024932,2]
[392160230,1761222505973,2141.46969747,0.0002,3]
[392160232,1761222520955,13919.97948766,0.0002,2]
[392160233,1761222520979,16902.9338785,0.0002,2]
[392160238,1761222554180,-1000.0,0.00024931,2]
[392160239,1761222554202,-300.0,0.00024931,2]
[392160240,1761222554222,-28917.58558,0.00024932,2]
[392160241,1761222557089,-24816.67622,0.00024932,2]
[392160242,1761222560065,-2263.450826,0.00024932,2]
[392160243,1761222562079,-1892.72281816,0.00024932,2]
[392160244,1761222570093,-4875.030286,0.00024932,2]
[392160245,1761222570135,-80764.49323825,0.00024932,2]
[392160246,1761222570154,-318.6022555,0.00025,2]
[392160247,1761222570174,-150.0,0.00025952,2]
[392160248,1761222570193,-3183.59506116,0.0002631,2]
[392160249,1761222570213,-20248.8110229,0.00026505,2]
[392160250,1761222570233,-1861.1951344,0.00026505,2]
[392160251,1761222570254,-420.0,0.0002701,2]
[392160252,1761222570273,-1586.64597787,0.0002739,2]
[392160253,1761222570292,-1000.0,0.00027397,2]
[392160254,1761222570312,-995.63702356,0.00027397,2]
[392160255,1761222570335,-380.50534398,0.00027424,120]
[392160256,1761222570354,-48658.13769054,0.00028,2]
[392160257,1761222570373,-9506.93700572,0.00028,2]
[392160258,1761222570394,-3183.59506108,0.00028376,2]
[392160259,1761222570413,-13489.79,0.00028749,10]
[392160260,1761222570432,-296.34067087,0.0002914,2]
[392160261,1761222570452,-587.0,0.00029263,2]
[392160262,1761222570472,-677.404,0.00029943,24]
[392160263,1761222570492,-3183.59506108,0.00030441,2]
[392160264,1761222570511,-150.0,0.00030562,2]
[392160265,1761222570532,-151.0,0.00030717,2]
[392160266,1761222570552,-151.0,0.00030717,2]
[392160267,1761222570573,-151.0,0.00030717,2]
[392160268,1761222570592,-150.0,0.0003097,2]
[392160269,1761222570614,-158.0,0.00031,120]
[392160270,1761222570634,-150.99999958,0.00031,2]
[392160271,1761222570656,-4518.1204463,0.00031187,2]
[392160272,1761222570678,-5164.61,0.00031367,2]
[392160273,1761222570701,-190.0,0.00031704,2]
[392160274,1761222570724,-296.34067087,0.0003177,2]
[392160275,1761222570755,-1008.1289387,0.00032231,2]
[392160276,1761222570783,-3183.59506108,0.00032507,2]
[392160277,1761222570807,-3422.66625642,0.0003269,2]
[392160278,1761222570827,-3422.66625642,0.0003288,2]
[392160279,1761222570847,-194.67,0.0003361,2]
[392160280,1761222570868,-296.34067087,0.000344,2]
[392160281,1761222570888,-3422.66625642,0.00034562,2]
[392160282,1761222570906,-3183.59506108,0.00034572,2]
[392160283,1761222570925,-6845.33251284,0.00034723,2]
[392160284,1761222570945,-6845.33251284,0.0003488,2]
[392160285,1761222570965,-164.96916391,0.000359,15]
[392160286,1761222570986,-15989.99354012,0.000359,2]
[392160287,1761222571008,-164.2,0.00035981,2]
[392160288,1761222571029,-6193.52784018,0.00036,30]
[392160289,1761222571080,-23806.47215982,0.00036,30]
[392160290,1761222571100,-22247.05102018,0.00036,30]
[392160307,1761222632012,-7752.94897982,0.00036,30]
[392160308,1761222632022,-5458.01602018,0.00036,30]
[392160309,1761222632124,-607.47582719,0.00036,30]
[392160882,1761222637943,-156.21603324,0.00035999,15]
[392160884,1761222637954,-108.02782236,0.00036,30]
[392161087,1761222639981,-342.50860551,0.00036,30]
[392161094,1761222640038,-23483.97172476,0.00036,30]
[392161096,1761222640047,-30000.0,0.00036,30]
[392161098,1761222640056,-11125.82257386,0.00036,30]
[392161137,1761222640410,-18874.17742614,0.00036,30]
[392161139,1761222640420,-30000.0,0.00036,30]
[392161141,1761222640429,-4245.0,0.000362,5]
[392161143,1761222640439,-3183.59506108,0.00036638,2]
[392161145,1761222640448,-15989.99354005,0.000369,2]
[392161147,1761222640458,-15989.99354005,0.000379,2]
[392161149,1761222640467,-500.0,0.00037954,120]
[392161151,1761222640477,-500.0,0.00037954,120]
[392161153,1761222640487,-500.0,0.00037954,7]
[392161155,1761222640503,-500.0,0.00037954,7]
[392161158,1761222640514,-202.70375635,0.00037954,7]
[392161160,1761222640524,-500.0,0.00037954,120]
[392161162,1761222640534,-500.0,0.00037954,30]
[392161164,1761222640544,-500.0,0.00037954,30]
[392161165,1761222640554,-500.0,0.00037954,120]
[392161166,1761222640563,-500.0,0.00037954,120]
[392161167,1761222640572,-500.0,0.00037954,120]
[392161168,1761222640581,-500.0,0.00037954,120]
[392161169,1761222640591,-164.9691639,0.00038158,15]
[392161170,1761222640600,-3183.59506108,0.00038703,2]
[392161171,1761222640610,-400.0,0.000389,14]
[392161173,1761222640620,-15989.99354005,0.000389,2]
[392161175,1761222640630,-150.83,0.00039537,2]
[392161177,1761222640639,-752.13807615,0.000396,120]
[392161179,1761222640648,-15989.99354005,0.000399,15]
[392161181,1761222640657,-500.0,0.00039989,30]
[392161183,1761222640666,-48837.076451,0.0003999,3]
[392161185,1761222640675,-1858.80379147,0.0004,2]
[392161186,1761222640684,-30000.0,0.0004,30]
[392161189,1761222640693,-30000.0,0.0004,30]
[392161191,1761222640703,-30000.0,0.0004,30]
[392161193,1761222640713,-27594.56641932,0.0004,30]
[392161195,1761222640723,-4439.73422282,0.00040354,3]
[392161197,1761222640732,-150.0,0.00040364,4]
[392161199,1761222640742,-150.0,0.00040364,4]
[392161201,1761222640754,-150.0,0.00040364,4]
[392161203,1761222640763,-150.0,0.00040364,4]
[392161205,1761222640772,-150.0,0.00040364,4]
[392161207,1761222640781,-150.0,0.00040364,4]
[392161209,1761222640791,-150.0,0.00040364,4]
[392161211,1761222640800,-150.0,0.00040364,4]
[392161213,1761222640809,-150.0,0.00040364,4]
[392161215,1761222640818,-150.0,0.00040364,4]
[392161217,1761222640828,-150.0,0.00040364,4]
[392161219,1761222640837,-150.0,0.00040364,4]
[392161221,1761222640846,-164.9691639,0.00040415,15]
[392161223,1761222640856,-151.0,0.00040531,2]
[392161225,1761222640865,-198.64070219,0.00040531,2]
[392161227,1761222640874,-3183.59506108,0.00040769,15]
[392161229,1761222640884,-4439.73422282,0.00040868,3]
[392161231,1761222640893,-4439.73422282,0.0004088,3]
[392161233,1761222640902,-15989.99354005,0.000409,15]
[392161235,1761222640914,-941.25933325,0.00040996,13]
[392161238,1761222640924,-500.01,0.00041096,120]
[392161239,1761222640933,-200.0,0.00041096,20]
[392161241,1761222640943,-168.0,0.00041211,2]
[392161244,1761222640953,-168.0,0.00041442,2]
[392161246,1761222640962,-168.0,0.00041492,2]
[392161248,1761222640972,-168.0,0.00041531,2]
[392161250,1761222640981,-150.0,0.00041859,30]
[392161252,1761222640990,-150.0,0.00041859,30]
[392161254,1761222641000,-15989.99354005,0.000419,15]
[392161256,1761222641009,-164.2,0.0004192,2]
[392161258,1761222641018,-168.0,0.00042004,7]
[392161260,1761222641028,-168.0,0.00042074,2]
[392161262,1761222641037,-168.0,0.00042157,2]
[392161264,1761222641047,-168.0,0.00042235,2]
[392161266,1761222641056,-150.0,0.00042607,30]
[392161268,1761222641065,-150.0,0.00042607,30]
[392161270,1761222641074,-150.0,0.00042607,30]
[392161272,1761222641083,-150.0,0.00042607,30]
[392161274,1761222641092,-164.9691639,0.00042673,15]
[392161276,1761222641102,-3183.59506108,0.00042834,15]
[392161278,1761222641111,-4439.73422282,0.00042857,3]
[392161280,1761222641121,-8879.46844564,0.00042867,3]
[392161282,1761222641129,-8879.46844564,0.00042879,3]
[392161284,1761222641139,-936.83,0.00042882,2]
[392161286,1761222641148,-16738.5488073,0.00042889,2]
[392161288,1761222641157,-15989.99354005,0.000429,15]
[392161290,1761222641166,-168.0,0.00042942,2]
[392161292,1761222641175,-8879.46844564,0.0004299,3]
[392161294,1761222641186,-4285.13,0.00043,120]
[392161296,1761222641195,-10000.0,0.00043,120]
[392161298,1761222641204,-674.02941388,0.00043045,30]
[392161300,1761222641213,-500.0,0.00043098,30]
[392161301,1761222641222,-500.0,0.00043115,30]
[392161303,1761222641231,-500.0,0.00043158,30]
[392161306,1761222641241,-194.67,0.0004319,14]
[392161307,1761222641250,-500.0,0.00043221,30]
[392161310,1761222641259,-150.0,0.00043354,30]
[392161312,1761222641269,-150.0,0.00043354,30]
[392161314,1761222641278,-500.0,0.00043438,30]
[392161315,1761222641287,-192.57926527,0.00043487,30]
[392161318,1761222641297,-200.0,0.00043488,2]
[392161319,1761222641305,-500.0,0.00043489,30]
[392161321,1761222641315,-4439.73422282,0.00043494,3]
[392161323,1761222641324,-500.0,0.00043501,30]
[392161325,1761222641334,-1700.7236351,0.00043514,120]
[392161328,1761222641344,-500.0,0.0004353,30]
[392161330,1761222641353,-500.0,0.00043552,30]
[392161331,1761222641362,-4439.73422282,0.00043557,3]
[392161333,1761222641373,-500.0,0.00043561,120]
[392161336,1761222641383,-10000.0,0.00043567,120]
[392161338,1761222641393,-151.73434895,0.00043735,20]
[392161339,1761222641402,-150.0,0.00043759,2]
[392161342,1761222641412,-168.0,0.00043764,2]
[392161343,1761222641421,-707.28027455,0.00043798,13]
[392161345,1761222641430,-1000.0,0.000438,30]
[392161347,1761222641439,-4439.73422282,0.00043805,3]
[392161349,1761222641448,-17758.9368913,0.00043815,3]
[392161351,1761222641457,-88794.6844564,0.00043825,3]
[392161353,1761222641466,-500.0,0.00043835,120]
[392161355,1761222641475,-500.0,0.00043835,120]
[392161357,1761222641485,-500.0,0.00043835,120]
[392161359,1761222641494,-500.0,0.00043835,120]
[392161361,1761222641503,-500.0,0.00043835,120]
[392161363,1761222641513,-301.70690505,0.00043835,2]
[392161365,1761222641522,-493.0846453,0.00043835,120]
[392161367,1761222641531,-502.45000383,0.00043835,120]
[392161369,1761222641542,-337.61165484,0.00043835,120]
[392161371,1761222641551,-500.0,0.00043835,120]
[392161373,1761222641560,-199.86043732,0.00043835,120]
[392161375,1761222641570,-500.0,0.00043835,120]
[392161377,1761222641580,-500.0,0.00043835,120]
[392161379,1761222641589,-500.0,0.00043835,120]
[392161381,1761222641599,-500.0,0.00043835,120]
[392161383,1761222641608,-500.0,0.00043835,120]
[392161385,1761222641618,-500.0,0.00043835,120]
[392161387,1761222641628,-500.0,0.00043835,120]
[392161389,1761222641637,-500.0,0.00043835,120]
[392161391,1761222641647,-500.0,0.00043835,120]
[392161393,1761222641657,-500.0,0.00043835,120]
[392161396,1761222641666,-500.0,0.00043835,30]
[392161398,1761222641675,-500.0,0.00043835,30]
[392161400,1761222641684,-500.0,0.00043835,120]
[392161402,1761222641694,-500.0,0.00043835,120]
[392161403,1761222641703,-163.74212952,0.00043835,120]
[392161406,1761222641712,-500.0,0.00043835,120]
[392161407,1761222641722,-500.0,0.00043835,120]
[392161409,1761222641732,-500.0,0.00043835,120]
[392161411,1761222641741,-500.0,0.00043835,120]
[392161413,1761222641753,-500.0,0.00043835,30]
[392161414,1761222641763,-500.0,0.00043835,30]
[392161415,1761222641773,-500.0,0.00043835,120]
[392161416,1761222641782,-500.0,0.00043835,120]
[392161417,1761222641792,-500.0,0.00043835,120]
[392161418,1761222641802,-226.2825107,0.00043835,120]
[392161420,1761222641811,-500.0,0.00043835,120]
[392161422,1761222641820,-500.0,0.00043835,120]
[392161424,1761222641830,-500.0,0.00043835,120]
[392161426,1761222641840,-500.0,0.00043835,120]
[392161428,1761222641850,-404.41706389,0.00043835,120]
[392161430,1761222641859,-500.0,0.00043835,120]
[392161432,1761222641868,-500.0,0.00043835,120]
[392161434,1761222641878,-500.0,0.00043835,120]
[392161436,1761222641887,-500.0,0.00043835,120]
[392161438,1761222641896,-500.0,0.00043835,120]
[392161440,1761222641905,-500.0,0.00043835,120]
[392161442,1761222641915,-500.0,0.00043835,60]
[392161444,1761222641925,-500.0,0.00043835,60]
[392161446,1761222641935,-500.0,0.00043835,120]
[392161448,1761222641945,-500.0,0.00043835,120]
[392161450,1761222641955,-500.0,0.00043835,120]
[392161452,1761222641963,-500.0,0.00043835,120]
[392161454,1761222641973,-500.0,0.00043835,120]
[392161456,1761222641982,-500.0,0.00043835,120]
[392161458,1761222641991,-500.0,0.00043835,120]
[392161460,1761222642001,-567.26786264,0.00043835,120]
[392161462,1761222642011,-500.0,0.00043835,120]
[392161464,1761222642020,-500.0,0.00043835,120]
[392161466,1761222642030,-500.0,0.00043835,120]
[392161469,1761222642040,-500.0,0.00043835,120]
[392161470,1761222642049,-499.74001188,0.00043835,120]
[392161473,1761222642059,-506.44304037,0.00043835,120]
[392161474,1761222642068,-500.0,0.00043835,120]
[392161477,1761222642078,-500.0,0.00043835,120]
[392161479,1761222642087,-516.9666162,0.00043835,120]
[392161481,1761222642096,-500.0,0.00043835,120]
[392161483,1761222642106,-493.04772946,0.00043835,120]
[392161484,1761222642115,-509.14034949,0.00043835,120]
[392161486,1761222642125,-500.0,0.00043835,120]
[392161488,1761222642134,-500.0,0.00043835,120]
[392161491,1761222642144,-500.0,0.00043835,120]
[392161493,1761222642154,-500.0,0.00043835,120]
[392161494,1761222642163,-500.0,0.00043835,30]
[392161496,1761222642173,-500.0,0.00043835,30]
[392161498,1761222642182,-500.0,0.00043835,30]
[392161500,1761222642192,-500.0,0.00043835,30]
[392161502,1761222642202,-500.0,0.00043835,120]
[392161504,1761222642211,-235.5100079,0.00043835,120]
[392161506,1761222642220,-500.0,0.00043835,120]
[392161509,1761222642232,-500.0,0.00043835,120]
[392161511,1761222642242,-500.0,0.00043835,120]
[392161513,1761222642251,-500.0,0.00043835,120]
[392161514,1761222642261,-500.0,0.00043835,120]
[392161516,1761222642271,-500.0,0.00043835,120]
[392161518,1761222642280,-500.0,0.00043835,120]
[392161520,1761222642290,-500.0,0.00043835,120]
[392161522,1761222642300,-500.0,0.00043835,120]
[392161536,1761222642410,-500.0,0.00043835,120]
[392161539,1761222642438,-500.0,0.00043835,120]
[392161541,1761222642448,-500.0,0.00043835,120]
[392161543,1761222642458,-565.23,0.00043835,120]
[392161545,1761222642467,-565.23,0.00043835,120]
[392161547,1761222642476,-500.0,0.00043835,120]
[392161549,1761222642485,-500.0,0.00043835,120]
[392161551,1761222642494,-500.0,0.00043835,120]
[392161553,1761222642503,-500.0,0.00043835,120]
[392161555,1761222642513,-500.0,0.00043835,120]
[392161557,1761222642522,-500.0,0.00043835,120]
[392161559,1761222642531,-500.0,0.00043835,120]
[392161561,1761222642541,-500.0,0.00043835,120]
[392161563,1761222642550,-607.83,0.00043835,120]
[392161565,1761222642559,-607.83,0.00043835,120]
[392161567,1761222642568,-500.0,0.00043835,120]
[392161569,1761222642579,-500.0,0.00043835,120]
[392161571,1761222642588,-500.0,0.00043835,120]
[392161573,1761222642598,-500.0,0.00043835,120]
[392161575,1761222642607,-500.0,0.00043835,120]
[392161577,1761222642616,-500.0,0.00043835,120]
[392161578,1761222642625,-500.0,0.00043835,120]
[392161580,1761222642635,-500.0,0.00043835,120]
[392161583,1761222642645,-500.0,0.00043835,120]
[392161584,1761222642654,-500.0,0.00043835,120]
[392161587,1761222642664,-500.0,0.00043835,120]
[392161588,1761222642673,-500.0,0.00043835,120]
[392161591,1761222642683,-379.32053243,0.00043835,120]
[392161593,1761222642692,-537.07,0.00043835,120]
[392161594,1761222642702,-537.07,0.00043835,120]
[392161596,1761222642711,-500.0,0.00043835,120]
[392161599,1761222642720,-500.0,0.00043835,120]
[392161602,1761222642730,-500.0,0.00043835,120]
[392161603,1761222642739,-500.0,0.00043835,120]
[392161605,1761222642754,-249.53737804,0.00043835,90]
[392161607,1761222642763,-500.0,0.00043835,120]
[392161610,1761222642773,-500.0,0.00043835,120]
[392161613,1761222642783,-500.0,0.00043835,120]
[392161616,1761222642793,-500.0,0.00043835,120]
[392161618,1761222642803,-500.0,0.00043835,120]
[392161620,1761222642812,-500.0,0.00043835,120]
[392161622,1761222642822,-500.0,0.00043835,120]
[392161624,1761222642836,-500.0,0.00043835,120]
[392161626,1761222642846,-500.0,0.00043835,120]
[392161628,1761222642856,-517.59894578,0.00043835,120]
[392161629,1761222642866,-500.0,0.00043835,120]
[392161630,1761222642876,-500.0,0.00043835,120]
[392161631,1761222642886,-500.0,0.00043835,120]
[392161632,1761222642896,-500.0,0.00043835,120]
[392161633,1761222642906,-500.0,0.00043835,120]
[392161634,1761222642917,-500.0,0.00043835,120]
[392161636,1761222642927,-500.0,0.00043835,120]
[392161638,1761222642937,-500.0,0.00043835,120]
[392161641,1761222642946,-500.0,0.00043835,120]
[392161644,1761222642956,-500.0,0.00043835,2]
[392161647,1761222642965,-500.0,0.00043835,120]
[392161651,1761222642974,-500.0,0.00043835,2]
[392161654,1761222642984,-500.0,0.00043835,120]
[392161657,1761222642993,-500.0,0.00043835,120]
[392161660,1761222643003,-500.0,0.00043835,120]
[392161662,1761222643013,-500.0,0.00043835,120]
[392161664,1761222643023,-406.43,0.00043835,30]
[392161667,1761222643032,-500.0,0.00043835,120]
[392161669,1761222643043,-747.6,0.00043835,120]
[392161671,1761222643053,-747.6,0.00043835,120]
[392161673,1761222643062,-175.59634812,0.00043835,120]
[392161674,1761222643072,-500.0,0.00043835,120]
[392161677,1761222643084,-500.0,0.00043835,120]
[392161679,1761222643094,-500.0,0.00043835,120]
[392161681,1761222643104,-500.0,0.00043835,120]
[392161683,1761222643114,-500.0,0.00043835,120]
[392161685,1761222643123,-500.0,0.00043835,120]
[392161687,1761222643133,-500.0,0.00043835,120]
[392161689,1761222643143,-500.0,0.00043835,120]
[392161691,1761222643152,-500.0,0.00043835,12]
[392161693,1761222643161,-500.0,0.00043835,12]
[392161695,1761222643170,-500.0,0.00043835,120]
[392161697,1761222643180,-539.75608841,0.00043835,120]
[392161698,1761222643189,-300.0,0.00043835,120]
[392161700,1761222643200,-300.0,0.00043835,120]
[392161702,1761222643211,-500.0,0.00043835,120]
[392161705,1761222643222,-500.0,0.00043835,120]
[392161707,1761222643232,-500.0,0.00043835,120]
[392161708,1761222643241,-500.0,0.00043835,120]
[392161710,1761222643252,-593.49,0.00043835,120]
[392161712,1761222643262,-593.49,0.00043835,120]
[392161714,1761222643273,-593.49,0.00043835,120]
[392161717,1761222643283,-593.49,0.00043835,120]
[392161719,1761222643292,-500.0,0.00043835,120]
[392161721,1761222643302,-500.0,0.00043835,120]
[392161723,1761222643312,-500.0,0.00043835,120]
[392161725,1761222643322,-500.0,0.00043835,120]
[392161727,1761222643333,-644.92441761,0.00043835,120]
[392161729,1761222643343,-500.0,0.00043835,120]
[392161731,1761222643352,-500.0,0.00043835,120]
[392161733,1761222643362,-500.0,0.00043835,120]
[392161735,1761222643371,-567.54843112,0.00043835,120]
[392161737,1761222643381,-500.0,0.00043835,120]
[392161739,1761222643390,-500.0,0.00043835,120]
[392161741,1761222643399,-500.0,0.00043835,120]
[392161743,1761222643409,-500.0,0.00043835,120]
[392161745,1761222643419,-500.0,0.00043835,120]
[392161747,1761222643430,-508.19482781,0.00043835,120]
[392161749,1761222643440,-500.0,0.00043835,120]
[392161751,1761222643450,-500.0,0.00043835,120]
[392161752,1761222643459,-695.06,0.00043835,120]
[392161755,1761222643469,-695.06,0.00043835,120]
[392161756,1761222643478,-695.06,0.00043835,120]
[392161758,1761222643488,-500.0,0.00043835,120]
[392161760,1761222643498,-695.06,0.00043835,120]
[392161762,1761222643507,-500.0,0.00043835,120]
[392161764,1761222643516,-500.0,0.00043835,120]
[392161766,1761222643526,-500.0,0.00043835,120]
[392161768,1761222643536,-500.0,0.00043835,120]
[392161770,1761222643545,-500.0,0.00043835,120]
[392161772,1761222643554,-500.0,0.00043835,120]
[392161774,1761222643563,-500.0,0.00043835,120]
[392161776,1761222643572,-922.41,0.00043835,120]
[392161778,1761222643583,-922.41,0.00043835,120]
[392161780,1761222643593,-388.78162999,0.00043835,120]
[392161782,1761222643602,-600.37,0.00043835,120]
[392161784,1761222643613,-600.37,0.00043835,120]
[392161786,1761222643623,-500.0,0.00043835,120]
[392161788,1761222643632,-387.44178773,0.00043835,120]
[392161790,1761222643641,-500.0,0.00043835,120]
[392161792,1761222643651,-500.0,0.00043835,120]
[392161794,1761222643662,-198.69143668,0.00043835,120]
[392161796,1761222643671,-500.0,0.00043835,2]
[392161798,1761222643680,-500.0,0.00043835,2]
[392161800,1761222643689,-500.0,0.00043835,30]
[392161802,1761222643698,-500.0,0.00043835,2]
[392161804,1761222643707,-500.0,0.00043835,2]
[392161806,1761222643716,-500.0,0.00043835,120]
[392161808,1761222643726,-500.0,0.00043835,120]
[392161810,1761222643736,-500.0,0.00043835,120]
[392161812,1761222643745,-500.0,0.00043835,120]
[392161814,1761222643758,-500.0,0.00043835,120]
[392161816,1761222643767,-500.0,0.00043835,120]
[392161818,1761222643776,-500.0,0.00043835,120]
[392161820,1761222643785,-500.0,0.00043835,120]
[392161822,1761222643795,-500.0,0.00043835,120]
[392161824,1761222643804,-500.0,0.00043835,120]
[392161825,1761222643813,-500.0,0.00043835,120]
[392161827,1761222643822,-500.0,0.00043835,120]
[392161829,1761222643832,-500.0,0.00043835,120]
[392161831,1761222643841,-500.0,0.00043835,120]
[392161833,1761222643851,-500.0,0.00043835,120]
[392161835,1761222643860,-500.0,0.00043835,120]
[392161837,1761222643869,-500.0,0.00043835,120]
[392161839,1761222643879,-500.0,0.00043835,120]
[392161841,1761222643887,-500.0,0.00043835,120]
[392161843,1761222643897,-500.0,0.00043835,120]
[392161845,1761222643907,-500.0,0.00043835,120]
[392161846,1761222643916,-500.0,0.00043835,120]
[392161847,1761222643925,-500.0,0.00043835,120]
[392161848,1761222643935,-500.0,0.00043835,120]
[392161849,1761222643944,-500.0,0.00043835,120]
[392161850,1761222643954,-500.0,0.00043835,120]
[392161851,1761222643963,-500.0,0.00043835,120]
[392161853,1761222643972,-549.41,0.00043835,120]
[392161855,1761222643982,-549.41,0.00043835,120]
[392161857,1761222643991,-549.41,0.00043835,120]
[392161859,1761222644000,-549.41,0.00043835,120]
[392161861,1761222644009,-717.86,0.00043835,120]
[392161863,1761222644018,-717.86,0.00043835,120]
[392161865,1761222644028,-717.86,0.00043835,120]
[392161867,1761222644037,-717.86,0.00043835,120]
[392161869,1761222644047,-500.0,0.00043835,120]
[392161871,1761222644056,-500.0,0.00043835,120]
[392161873,1761222644065,-543.96,0.00043835,120]
[392161875,1761222644075,-543.96,0.00043835,120]
[392161877,1761222644084,-500.0,0.00043835,120]
[392161879,1761222644094,-500.0,0.00043835,120]
[392161881,1761222644103,-500.0,0.00043835,120]
[392161883,1761222644112,-500.0,0.00043835,120]
[392161885,1761222644121,-500.0,0.00043835,120]
[392161887,1761222644130,-500.0,0.00043835,120]
[392161888,1761222644139,-658.59,0.00043835,120]
[392161890,1761222644148,-658.59,0.00043835,120]
[392161893,1761222644157,-500.0,0.00043835,120]
[392161895,1761222644167,-500.0,0.00043835,120]
[392161897,1761222644176,-500.0,0.00043835,120]
[392161899,1761222644185,-500.0,0.00043835,120]
[392161901,1761222644194,-500.0,0.00043835,120]
[392161903,1761222644206,-500.0,0.00043835,120]
[392161905,1761222644214,-500.0,0.00043835,120]
[392161907,1761222644224,-500.0,0.00043835,120]
[392161909,1761222644234,-500.0,0.00043835,120]
[392161911,1761222644243,-500.0,0.00043835,120]
[392161913,1761222644254,-500.0,0.00043835,120]
[392161915,1761222644264,-500.0,0.00043835,120]
[392161917,1761222644273,-611.65,0.00043835,120]
[392161919,1761222644283,-611.65,0.00043835,120]
[392161921,1761222644292,-611.65,0.00043835,120]